bitfinex/quotes_ETHUSD_20251021
["timestamp","ask_amount","ask_price","bid_price","bid_amount"]
[1761066432363,0.1816,4041.7,4040.3,3.156971]
[1761066432559,0.1816,4041.7,4040.4,0.02475002]
[1761066432765,0.1808,4042.0,4040.7,3.824524]
[1761066432927,2.47413082,4041.9,4041.1,2.47455578]
[1761066433132,2.47409849,4041.9,4041.1,2.47455578]
[1761066433634,0.1808,4042.0,4041.4,2.47438316]
[1761066434060,0.1808,4042.0,4041.0,2.47457721]
[1761066434270,0.50688,4041.9,4041.0,0.02474634]
[1761066434471,0.50688,4041.9,4039.9,2.47530314]
[1761066434472,0.50688,4041.8,4040.6,2.47484091]
[1761066434673,0.1017,4041.8,4040.5,2.47489833]
[1761066434872,2.47446219,4041.3,4040.3,2.47505719]
[1761066435174,0.1808,4042.0,4040.4,0.02475002]
[1761066435175,2.65482707,4042.0,4040.4,0.02475002]
[1761066435473,2.47421492,4041.7,4040.9,2.47467677]
[1761066435672,2.47438411,4041.5,4040.8,6.17574984]
[1761066436175,0.1017,4041.9,4040.8,3.701]
[1761066436675,0.1017,4041.9,4040.7,3.701]
[1761066436878,0.1801,4042.6,4041.0,2.47463499]
[1761066437042,0.1801,4042.6,4040.9,22.61021155]
[1761066437043,2.6537857,4042.6,4041.6,2.47425141]
[1761066437243,2.6537857,4042.6,4040.7,0.3701]
[1761066437244,0.63720604,4042.5,4040.7,0.3701]
[1761066437448,0.50688,4042.4,4040.6,1.728]
[1761066437763,2.47394934,4042.2,4041.4,2.47434135]
[1761066437966,2.50193275,4042.1,4041.3,2.47440875]
[1761066438154,2.47408213,4042.0,4041.2,6.1744696]
[1761066438357,0.1024,4042.3,4041.5,2.4742827]
[1761066438677,0.1024,4042.3,4041.4,2.47439006]
[1761066438678,2.47391713,4042.2,4041.4,2.47439006]
[1761066438865,0.1232,4042.2,4041.5,0.1232]
[1761066439075,0.02792604,4042.1,4041.5,0.1232]
[1761066439257,0.1232,4041.9,4041.3,3.7]
[1761066439458,0.1024,4042.3,4041.3,3.7]
[1761066439459,0.1837,4042.9,4041.8,22.61021155]
[1761066439775,2.4741405,4041.9,4040.8,2.4747505]
[1761066439995,0.02792604,4041.8,4040.3,0.4599]
[1761066440196,0.0998,4042.8,4040.3,0.4599]
[1761066440197,2.47375709,4042.5,4040.5,1.728]
[1761066440495,2.47375709,4042.5,4041.5,2.47432548]
[1761066440775,2.47390856,4042.2,4041.4,6.17336477]
[1761066441097,2.47397325,4042.1,4041.4,6.17336477]
[1761066441295,0.0998,4042.4,4041.4,3.699]
[1761066441448,0.2835,4042.9,4041.4,3.699]
[1761066441648,2.47402659,4042.0,4041.4,3.699]
[1761066441957,2.47415215,4041.8,4041.1,3.699]
[1761066442154,2.47415507,4041.8,4041.1,6.17356655]
[1761066442349,0.0998,4042.2,4041.1,3.699]
[1761066442550,0.0998,4042.2,4041.3,2.47442892]
[1761066442899,2.47408876,4041.9,4041.1,2.47452443]
[1761066443097,2.47403639,4042.0,4041.2,2.47450269]
[1761066443263,2.47403639,4042.0,4041.0,3.698]
[1761066443264,2.47402725,4042.0,4041.0,3.698]
[1761066443449,2.47396781,4042.1,4041.3,2.47440256]
[1761066443645,0.0998,4042.2,4040.6,0.76149]
[1761066443848,0.50688,4042.0,4040.6,2.47482384]
[1761066444063,0.1907,4040.7,4039.9,2.47530879]
[1761066444359,0.63640604,4040.6,4037.9,2.42530002]
[1761066444563,3.08342122,4040.5,4038.2,2.47635084]
[1761066444791,0.1016,4040.5,4038.4,3.245724]
[1761066444999,2.47527238,4040.0,4038.2,2.47635084]
[1761066445200,2.50323859,4039.9,4038.8,2.47596808]
[1761066445352,2.4754222,4039.8,4038.9,2.47591099]
[1761066445557,2.4752476,4040.0,4038.9,2.47591099]
[1761066445763,2.47554808,4039.6,4038.3,3.697]
[1761066446058,2.47554808,4039.6,4038.0,2.76515008]
[1761066446059,2.50349092,4039.5,4038.0,0.28868]
[1761066446259,2.47572493,4039.3,4038.0,0.02476473]
[1761066446463,0.50688,4039.4,4037.9,2.351]
[1761066446663,2.9824245,4039.6,4038.7,2.47599491]
[1761066446856,2.4755634,4039.5,4038.7,2.47599491]
[1761066447064,0.1016,4039.5,4037.9,2.351]
[1761066447294,0.50688,4039.6,4038.2,2.47634558]
[1761066447295,0.1016,4039.4,4038.2,2.47634558]
[1761066447468,2.47580947,4039.1,4038.2,2.47634558]
[1761066447673,0.1848,4038.3,4036.8,0.2343]
[1761066447972,2.47560887,4039.5,4037.1,2.47702558]
[1761066447973,2.47605247,4038.7,4037.1,2.47702558]
[1761066448158,2.47607721,4038.7,4037.3,5.658745]
[1761066448365,0.2863,4039.3,4037.4,5.108188]
[1761066448565,0.2863,4039.3,4038.0,2.47646938]
[1761066448869,0.2863,4039.3,4037.5,0.4615]
[1761066448870,0.02792604,4039.2,4037.9,3.697]
[1761066449161,0.1907,4040.7,4039.2,0.2343]
[1761066449380,0.099,4040.6,4039.1,0.1232]
[1761066449581,0.1232,4039.5,4039.1,2.4757838]
[1761066449933,2.4754854,4039.7,4038.7,2.47603326]
[1761066450100,2.47556886,4039.5,4038.7,2.47603326]
[1761066450283,2.47553106,4039.6,4038.7,2.47604177]
[1761066450480,0.50688,4040.0,4038.5,3.696]
[1761066450693,0.50688,4040.0,4038.3,2.47623101]
[1761066450694,2.47578662,4039.2,4038.4,3.696]
[1761066450893,2.47585188,4039.1,4038.1,1.728]
[1761066451113,0.50688,4039.5,4038.1,1.728]
[1761066451313,0.1874,4039.0,4038.0,3.696]
[1761066451516,0.0999,4039.5,4038.0,0.43918]
[1761066451691,2.66210067,4039.5,4038.1,0.4615]
[1761066451882,2.47543134,4039.7,4038.1,2.96266364]
[1761066452083,0.1907,4040.7,4038.4,3.938823]
[1761066452084,0.1883,4040.3,4038.4,3.938823]
[1761066452319,0.1883,4040.3,4038.3,1.728]
[1761066452320,0.1883,4040.3,4039.5,2.47552803]
[1761066452536,0.1883,4040.3,4038.2,2.93785084]
[1761066452537,0.63380604,4040.2,4038.1,3.695]
[1761066452735,0.1883,4040.3,4038.6,7.594171]
[1761066452934,0.1883,4040.3,4038.4,0.4615]
[1761066452935,0.1883,4040.3,4039.5,2.4754973]
[1761066453181,0.1883,4040.3,4039.3,6.17062304]
[1761066453301,0.1907,4040.7,4039.4,0.02475615]
[1761066453501,0.1898,4041.2,4039.5,0.37197562]
[1761066453830,0.1837,4042.9,4041.9,2.47407267]
[1761066454014,0.1837,4042.9,4041.6,3.695]
[1761066454201,2.4737023,4042.6,4041.7,2.47419023]
[1761066454412,0.1837,4042.9,4041.7,2.4741542]
[1761066454745,0.1837,4042.9,4041.9,2.47403682]
[1761066455051,0.02792604,4042.8,4041.7,6.16917143]
[1761066455206,0.1837,4042.9,4041.7,3.695]
[1761066455396,0.1837,4042.9,4041.6,2.47426761]
[1761066455593,0.1837,4042.9,4041.9,2.47408382]
[1761066455824,0.1837,4042.9,4042.1,2.47394295]
[1761066456034,2.47370351,4042.6,4041.5,0.2343]
[1761066456347,2.47364676,4042.7,4041.6,3.694]
[1761066456508,2.47366571,4042.6,4041.7,3.694]
[1761066456710,2.47376943,4042.5,4041.5,0.2343]
[1761066456925,2.50170522,4042.4,4041.6,6.16825133]
[1761066457118,2.50170522,4042.4,4039.3,0.4615]
[1761066457119,0.50688,4042.3,4039.3,0.4615]
[1761066457418,0.50688,4042.3,4039.6,1.345]
[1761066457419,2.47457763,4041.1,4039.6,1.345]
[1761066457600,0.50688,4042.1,4039.6,1.345]
[1761066457601,2.47450089,4041.3,4040.5,2.47493632]
[1761066457806,0.099,4041.7,4040.3,2.47501202]
[1761066458017,1.827,4042.5,4040.4,3.71775002]
[1761066458203,2.4741071,4041.9,4041.1,2.47457345]
[1761066458408,2.4741071,4041.9,4040.5,0.6958]
[1761066458409,2.47442546,4041.4,4040.8,3.693]
[1761066458594,0.099,4041.8,4040.4,3.692]
[1761066458792,2.47420639,4041.7,4040.6,2.47483307]
[1761066459095,3.693,4042.6,4040.4,3.692]
[1761066459096,0.099,4042.3,4041.0,2.47462481]
[1761066459296,0.099,4042.3,4040.4,4.1535]
[1761066459609,2.47433476,4041.5,4040.1,0.6958]
[1761066459935,0.1232,4041.2,4040.5,2.59812872]
[1761066460088,0.1232,4041.2,4040.5,0.1232]
[1761066460294,0.02792604,4041.1,4039.5,0.4615]
[1761066460495,0.1232,4040.4,4039.8,0.1232]
[1761066460932,0.1232,4040.4,4039.1,0.2343]
[1761066460933,3.681,4041.6,4040.3,2.47506373]
[1761066461135,0.1232,4041.1,4040.4,0.1232]
[1761066461341,0.1232,4041.1,4040.4,2.59818675]
[1761066461647,0.1232,4041.1,4040.4,0.1232]
[1761066461832,0.1232,4041.1,4040.5,2.4748831]
[1761066462007,0.1232,4041.1,4040.7,0.002]
[1761066462413,0.1232,4041.5,4040.9,2.59784409]
[1761066462818,0.1232,4041.5,4040.9,0.1232]
[1761066463051,0.1232,4041.5,4040.7,0.002]
[1761066463052,0.02792604,4041.4,4040.7,0.002]
[1761066463255,2.47475747,4040.8,4040.7,0.002]
[1761066463748,2.57375747,4040.8,4040.7,0.002]
[1761066464812,2.47439006,4041.4,4040.7,0.002]
[1761066465010,1.827,4042.0,4040.7,0.002]
[1761066465207,0.1,4042.4,4040.7,0.002]
[1761066465444,2.4745557,4041.2,4040.7,0.002]
[1761066465655,2.54862,4041.7,4040.7,2.47681503]
[1761066465869,0.02792604,4041.6,4040.7,0.002]
[1761066466017,2.47443958,4041.4,4040.7,0.002]
[1761066466358,2.47437752,4041.5,4040.7,2.47681256]
[1761066466514,2.50231694,4041.4,4040.7,0.002]
[1761066466717,0.02792604,4041.4,4040.7,2.47681523]
[1761066466930,2.4744399,4041.4,4040.7,0.002]
[1761066467128,2.50236594,4041.4,4040.7,2.47680463]
[1761066467529,2.47434503,4041.5,4040.8,2.47473438]
[1761066467828,0.02792604,4041.4,4040.7,2.47681443]
[1761066468025,2.47434412,4041.5,4040.8,2.47470508]
[1761066468262,2.47434412,4041.5,4040.7,0.002]
[1761066468468,0.0744,4041.7,4040.8,2.47474303]
[1761066468648,2.47435905,4041.5,4040.8,2.47474303]
[1761066468848,2.4742809,4041.6,4040.8,2.47474303]
[1761066469049,2.47432883,4041.5,4040.8,2.47474313]
[1761066469257,0.0744,4041.7,4040.7,2.47680645]
[1761066469464,2.47427094,4041.6,4040.9,2.47466074]
[1761066469885,0.1898,4041.6,4040.7,0.002]
[1761066470063,2.66408749,4041.6,4040.7,0.002]
[1761066470375,0.0744,4041.7,4040.8,0.4615]
[1761066470577,0.0744,4041.7,4041.0,2.47463499]
[1761066470744,2.5486267,4041.7,4040.8,2.47473377]
[1761066471078,2.5486267,4041.7,4040.9,3.687]
[1761066471079,0.0744,4041.7,4040.9,3.687]
[1761066471280,0.0744,4041.7,4041.0,2.47460174]
[1761066471581,0.0744,4041.7,4040.7,0.02674818]
[1761066471582,0.0744,4041.7,4041.1,2.4745313]
[1761066471880,2.47475747,4040.8,4040.7,0.002]
[1761066472475,2.76236596,4041.2,4040.7,0.002]
[1761066472678,2.4746335,4041.1,4040.7,0.002]
[1761066472889,0.0744,4041.7,4040.7,0.002]
[1761066473055,0.001,4042.4,4041.7,2.47420639]
[1761066473256,0.001,4042.4,4042.3,12.28039015]
[1761066473459,0.001,4042.4,4042.3,5.02083915]
[1761066473656,0.001,4042.4,4042.3,8.29322315]
[1761066473855,0.001,4042.4,4042.3,5.02083915]
[1761066474066,0.001,4042.4,4042.3,7.98947214]
[1761066474446,0.001,4042.4,4042.3,8.02314714]
[1761066474862,0.001,4042.4,4042.3,5.78176914]
[1761066475059,0.001,4042.4,4042.3,5.02083915]
[1761066475288,0.001,4042.4,4042.3,4.55933915]
[1761066475495,0.001,4042.4,4042.3,2.59703915]
[1761066475799,0.001,4042.4,4042.3,0.1232]
[1761066475948,0.001,4042.4,4041.9,2.47403127]
[1761066475949,0.001,4042.4,4041.9,2.59727776]
[1761066476148,0.001,4042.4,4042.1,2.47395934]
[1761066476359,0.001,4042.4,4042.0,2.47402013]
[1761066476558,0.001,4042.4,4042.1,2.47395401]
[1761066476764,0.001,4042.4,4042.2,2.47389153]
[1761066477285,0.001,4042.4,4042.2,2.47388861]
[1761066477483,0.001,4042.4,4041.9,0.1232]
[1761066477684,0.001,4042.4,4041.1,2.4745585]
[1761066477685,0.099,4042.3,4041.1,2.4745585]
[1761066477887,0.1898,4041.2,4040.2,3.9098]
[1761066478182,0.001,4042.4,4040.2,3.9098]
[1761066478183,0.0999,4042.2,4040.3,2.4750485]
[1761066478491,2.47438858,4041.5,4040.4,3.683]
[1761066478695,2.47428255,4041.6,4040.4,3.683]
[1761066478984,2.57390305,4042.1,4040.7,0.39524818]
[1761066479185,0.0999,4042.3,4041.1,2.47452207]
[1761066479504,2.47425682,4041.7,4040.8,2.47469654]
[1761066479682,0.001,4042.4,4040.7,0.002]
[1761066479898,0.001,4042.4,4040.9,1.728]
[1761066480080,0.0999,4042.3,4041.0,0.21698]
[1761066480252,0.0999,4042.3,4041.1,1.728]
[1761066480581,0.001,4042.4,4041.7,2.47415399]
[1761066480780,0.001,4042.4,4041.2,0.02474512]
[1761066480781,0.001,4042.4,4042.3,2.47383915]
[1761066481392,0.001,4042.4,4042.3,2.91363915]
[1761066481548,0.001,4042.4,4042.3,12.20357972]
[1761066481870,0.001,4042.4,4042.3,9.51743672]
[1761066482072,0.001,4042.4,4042.3,4.76327872]
[1761066482273,0.001,4042.4,4042.3,2.49857754]
[1761066482583,0.001,4042.4,4042.2,2.70068099]
[1761066482883,0.001,4042.4,4042.3,2.47383915]
[1761066483298,0.001,4042.4,4042.3,2.49857754]
[1761066483501,0.001,4042.4,4042.3,7.57053815]
[1761066483688,0.001,4042.4,4042.3,10.03897304]
[1761066483890,0.001,4042.4,4042.3,4.94227404]
[1761066484205,0.001,4042.4,4041.9,3.682]
[1761066484508,0.001,4042.4,4042.0,2.47401751]
[1761066484705,0.001,4042.4,4042.0,2.47402276]
[1761066484902,0.001,4042.4,4041.9,3.682]
[1761066485102,0.001,4042.4,4042.3,2.47383915]
[1761066485405,0.001,4042.4,4042.3,35.74342149]
[1761066485583,0.001,4042.4,4042.3,36.1584831]
[1761066485778,0.001,4042.9,4042.8,2.47353319]
[1761066485991,0.001,4042.9,4042.8,10.46902552]
[1761066486203,0.001,4042.9,4042.8,11.8047622]
[1761066486369,0.001,4042.9,4041.4,0.4398]
[1761066486570,0.001,4042.9,4042.5,2.47370672]
[1761066486776,0.1838,4042.9,4042.5,2.47370672]
[1761066487028,0.001,4042.9,4042.6,2.47363479]
[1761066487209,0.001,4042.9,4042.8,2.47353319]
[1761066487581,0.001,4042.9,4042.8,2.59673319]
[1761066487904,0.001,4042.9,4042.8,3.83462172]
[1761066488207,0.001,4042.9,4042.8,3.51802172]
[1761066488394,0.001,4042.9,4042.8,2.59673319]
[1761066488596,0.001,4042.9,4042.8,2.62146852]
[1761066488983,0.001,4042.9,4042.8,2.47353319]
[1761066489681,0.001,4042.9,4042.8,2.49826852]
[1761066490005,0.001,4042.9,4042.8,0.02473533]
[1761066490302,0.001,4042.9,4041.0,1.88798]
[1761066490303,0.001,4042.9,4042.2,3.677]
[1761066490503,2.47371285,4042.6,4041.8,3.677]
[1761066490712,0.1042,4042.9,4041.8,3.677]
[1761066490925,2.47359475,4042.7,4041.8,3.677]
[1761066491439,0.001,4042.9,4041.8,3.677]
[1761066491636,0.001,4042.9,4041.8,3.96866655]
[1761066491840,0.001,4042.9,4042.0,2.47402026]
[1761066491995,0.02892604,4042.9,4041.8,3.96866655]
[1761066492197,2.47377639,4042.5,4041.8,3.677]
[1761066492426,2.47377902,4042.4,4041.8,3.677]
[1761066492794,0.02792604,4042.6,4041.8,3.677]
[1761066492795,0.1854,4042.8,4041.9,2.47408397]
[1761066493141,0.21242604,4042.7,4041.8,3.677]
[1761066493352,0.21242604,4042.7,4041.4,0.2268]
[1761066493353,2.47365556,4042.6,4041.4,3.676]
[1761066493496,2.47475747,4040.8,4040.2,0.002]
[1761066494094,0.1924,4040.9,4040.2,0.002]
[1761066494630,0.1845,4042.8,4040.9,5.133467]
[1761066494949,0.1845,4042.8,4041.0,2.46843489]
[1761066494950,0.02792604,4042.7,4041.0,2.46843489]
[1761066495151,0.099,4042.7,4040.8,3.675]
[1761066495294,0.099,4042.7,4041.1,24.55618045]
[1761066495496,0.1845,4042.8,4041.6,2.47420782]
[1761066495823,0.1845,4042.8,4042.1,2.47390788]
[1761066495999,0.1845,4042.8,4042.2,2.47388662]
[1761066496337,2.47370931,4042.6,4041.4,3.675]
[1761066496539,0.02792604,4042.5,4041.2,4.20251252]
[1761066496696,2.47401324,4042.1,4040.7,0.002]
[1761066496898,0.02792604,4042.0,4041.1,2.47456602]
[1761066497108,2.4739048,4042.2,4041.3,2.47440008]
[1761066497320,2.47409056,4041.9,4040.9,2.47467737]
[1761066497802,0.1008,4042.0,4041.0,2.47463499]
[1761066497996,2.47420344,4041.8,4040.9,2.47464548]
[1761066498201,0.02792604,4041.7,4041.0,2.47463133]
[1761066498405,0.1008,4041.9,4040.8,0.002]
[1761066498598,0.1008,4041.9,4040.9,2.47469623]
[1761066498830,2.47419203,4041.8,4040.9,2.47469623]
[1761066499132,0.1232,4041.3,4040.9,2.47469623]
[1761066499338,0.1888,4041.0,4040.8,0.002]
[1761066499505,0.1232,4040.9,4040.8,0.002]
[1761066499699,2.59789623,4040.9,4040.8,0.002]
[1761066499911,0.1232,4040.9,4040.8,0.002]
[1761066501038,2.72842227,4040.9,4040.8,0.002]
[1761066501638,0.13052604,4040.9,4040.8,0.002]
[1761066501850,6.78510227,4040.9,4040.8,0.002]
[1761066502005,8.48517623,4040.9,4040.8,0.002]
[1761066502404,2.57729623,4040.9,4040.8,0.002]
[1761066502746,0.1888,4041.0,4040.8,0.002]
[1761066502944,2.66344197,4041.0,4040.8,0.002]
[1761066503149,0.1888,4041.0,4040.8,0.002]
[1761066503468,2.47395579,4042.2,4040.8,0.002]
[1761066503469,0.2895,4042.3,4040.8,0.002]
[1761066503619,0.2895,4042.3,4040.9,2.47469623]
[1761066503942,2.5018712,4042.2,4041.4,2.47437975]
[1761066504117,2.47394516,4042.2,4041.5,2.47432467]
[1761066504321,2.47394516,4042.2,4041.4,2.47437639]
[1761066504543,0.099,4042.3,4041.0,2.72497682]
[1761066504727,0.2835,4042.8,4041.0,0.25034438]
[1761066504917,0.2835,4042.8,4040.8,0.002]
[1761066504918,2.50157508,4042.7,4041.9,2.47407944]
[1761066505120,0.02792604,4042.6,4040.8,0.002]
[1761066505319,0.50688,4042.5,4040.8,0.002]
[1761066505519,2.47388705,4042.3,4040.8,0.002]
[1761066505720,2.47432929,4041.5,4040.8,0.002]
[1761066505936,1.728,4042.1,4040.8,0.002]
[1761066506138,1.728,4041.9,4040.8,0.002]
[1761066506376,0.50688,4041.7,4040.8,0.002]
[1761066506666,2.47454778,4041.2,4040.8,0.002]
[1761066506965,3.672,4041.6,4040.8,0.002]
[1761066506966,2.47445585,4041.3,4040.8,0.002]
[1761066507176,2.47439006,4041.4,4040.8,0.002]
[1761066507340,6.14626961,4041.6,4040.8,0.002]
[1761066507541,0.099,4042.1,4040.8,0.002]
[1761066507747,4.48002276,4042.0,4041.0,2.4746114]
[1761066507953,3.672,4042.2,4041.3,2.47443233]
[1761066508262,3.672,4042.2,4041.0,0.28282378]
[1761066508263,2.47400773,4042.1,4041.1,2.47457162]
[1761066508476,2.47391018,4042.2,4041.4,2.47436132]
[1761066508642,0.1845,4042.8,4041.5,0.02474328]
[1761066508840,2.47359437,4042.7,4041.6,2.47426761]
[1761066509166,2.47358162,4042.8,4041.2,0.4479]
[1761066509352,0.001,4042.9,4042.1,2.47393974]
[1761066509572,0.1837,4042.8,4041.3,2.47445129]
[1761066509767,0.02792604,4042.7,4041.6,2.47421772]
[1761066509965,0.12772604,4042.6,4041.2,1.728]
[1761066510274,2.47377795,4042.4,4041.1,6.14553115]
[1761066510484,0.50688,4042.5,4041.1,3.671]
[1761066510632,2.47406483,4042.0,4041.2,2.47451029]
[1761066510833,3.671,4042.5,4041.3,0.02474451]
[1761066511080,3.671,4042.5,4041.2,0.4479]
[1761066511235,3.671,4042.5,4040.8,0.002]
[1761066511236,0.02792604,4042.4,4040.8,0.002]
[1761066511433,0.1232,4040.9,4040.8,0.002]
[1761066512066,2.47469623,4040.9,4040.8,0.002]
[1761066512366,0.1906,4041.0,4040.8,0.002]
[1761066512570,2.57639623,4040.9,4040.8,0.002]
[1761066512769,0.1017,4040.9,4040.8,0.002]
[1761066512938,0.1906,4041.0,4040.8,0.002]
[1761066513133,2.50262227,4040.9,4040.8,0.002]
[1761066513338,2.47469623,4040.9,4040.8,0.002]
[1761066515671,3.9603,4041.9,4040.8,0.002]
[1761066515889,2.47469623,4040.9,4040.8,0.002]
[1761066516187,0.1932,4042.0,4040.8,0.002]
[1761066516341,0.02792604,4041.6,4040.8,0.002]
[1761066516539,2.98157623,4040.9,4040.8,0.002]
[1761066516739,6.65057623,4040.9,4040.8,0.002]
[1761066516971,3.08057623,4040.9,4040.8,0.002]
[1761066517175,6.74957623,4040.9,4040.8,0.002]
[1761066517771,2.57369623,4040.9,4040.8,0.002]
[1761066517982,6.24169623,4040.9,4040.8,0.002]
[1761066518687,2.57369623,4040.9,4040.8,0.002]
[1761066518867,6.14269623,4040.9,4040.8,0.002]
[1761066519177,6.24169623,4040.9,4040.8,0.002]
[1761066519883,2.47469623,4040.9,4040.8,0.002]
[1761066520055,6.14269623,4040.9,4040.8,0.002]
[1761066520251,0.60588,4041.4,4040.8,0.002]
[1761066520252,2.47464764,4041.0,4040.8,0.002]
[1761066520557,3.667,4041.0,4040.8,0.002]
[1761066520954,2.57369623,4040.9,4040.8,0.002]
[1761066521276,3.10850227,4040.9,4040.8,0.002]
[1761066521574,2.60162227,4040.9,4040.8,0.002]
[1761066523074,3.08063747,4040.8,4040.7,1e-08]
[1761066523637,6.74663747,4040.8,4040.7,1e-08]
[1761066523844,8.37563747,4040.8,4040.2,1e-08]
[1761066524046,3.16924373,4040.3,4040.2,1e-08]
[1761066524242,6.83524373,4040.3,4040.2,1e-08]
[1761066524447,15.61395573,4040.3,4040.2,1e-08]
[1761066524745,33.51026618,4040.3,4040.2,1e-08]
[1761066524949,28.17228159,4040.3,4040.2,1e-08]
[1761066525183,31.83828159,4040.3,4040.2,1e-08]
[1761066525381,27.65465718,4040.3,4040.2,1e-08]
[1761066525557,31.32065718,4040.3,4040.2,1e-08]
[1761066525757,4.71012752,4040.0,4037.6,0.4479]
[1761066525971,4.73805356,4040.0,4037.6,0.4479]
[1761066526173,4.83705356,4040.0,4037.6,2.92456913]
[1761066526379,8.50205356,4040.0,4037.6,2.92456913]
[1761066526645,8.47412752,4040.0,4037.6,0.4479]
[1761066527070,8.47412752,4040.0,4037.7,2.47664742]
[1761066527270,8.47412752,4040.0,4037.6,0.4479]
[1761066527271,8.47412752,4040.0,4038.2,0.2144]
[1761066527949,2.47642013,4038.1,4037.4,0.2144]
[1761066528261,3.665,4038.0,4037.4,0.2144]
[1761066528471,1.508,4037.9,4037.4,0.2144]
[1761066528770,0.1874,4037.5,4036.7,0.2144]
[1761066528973,2.47682788,4037.5,4036.7,0.2144]
[1761066529191,0.1819,4038.7,4037.4,0.2144]
[1761066529361,3.664,4038.6,4037.4,0.6623]
[1761066529559,6.14012508,4038.6,4037.4,0.6623]
[1761066529763,2.47616689,4038.5,4037.4,3.13909492]
[1761066529995,3.664,4038.6,4037.4,0.6623]
[1761066530178,2.47635196,4038.2,4037.4,0.6623]
[1761066530494,3.664,4038.1,4037.6,2.47665768]
[1761066530696,3.664,4038.1,4037.6,0.56157972]
[1761066530884,3.664,4038.1,4037.8,2.47659067]
[1761066531091,0.099,4039.7,4037.7,0.4479]
[1761066531268,6.13973776,4039.2,4037.7,0.47266657]
[1761066531467,6.13884763,4039.1,4038.3,2.4762419]
[1761066531902,0.12782604,4039.0,4037.4,0.2144]
[1761066532104,0.12782604,4039.0,4036.7,0.2144]
[1761066532105,0.50688,4038.7,4036.7,0.2144]
[1761066532293,0.50688,4038.3,4036.3,0.6623]
[1761066532598,2.4762282,4038.4,4036.3,0.6623]
[1761066532599,2.47718972,4036.9,4036.3,0.2144]
[1761066532905,3.663,4036.8,4036.3,0.2144]
[1761066533105,3.663,4036.8,4035.8,0.4479]
[1761066533106,2.60060775,4036.5,4035.8,0.5711]
[1761066533404,0.1232,4036.5,4035.9,2.4777136]
[1761066533565,0.1232,4036.5,4035.9,0.4479]
[1761066533766,0.1232,4036.5,4035.8,0.1232]
[1761066533999,0.1232,4036.5,4036.0,2.91758328]
[1761066534175,0.1232,4036.5,4035.7,0.4399]
[1761066534377,2.47750658,4036.4,4035.7,0.4399]
[1761066534575,3.663,4036.8,4035.8,0.02477823]
[1761066534900,3.663,4036.8,4036.0,2.47765498]
[1761066535102,3.663,4036.8,4035.9,0.4399]
[1761066535103,2.50521,4036.7,4035.9,0.4399]
[1761066535281,2.4773324,4036.6,4035.9,0.4399]
[1761066535481,2.477275,4036.7,4035.9,2.9176596]
[1761066535703,2.47735383,4036.6,4035.9,2.9176596]
[1761066535905,2.47752223,4036.3,4035.6,0.2144]
[1761066536079,3.663,4036.8,4035.6,0.2144]
[1761066536401,6.14021949,4036.8,4036.0,2.47769366]
[1761066536571,2.47728172,4036.7,4036.1,0.2175]
[1761066536907,2.50526124,4036.6,4035.6,2.69232327]
[1761066537118,0.099,4039.4,4036.5,0.2175]
[1761066537324,0.02792604,4038.2,4036.5,0.2175]
[1761066537528,3.662,4038.6,4036.6,0.4399]
[1761066537529,1.728,4038.5,4036.6,0.4399]
[1761066537693,0.0999,4038.2,4036.6,0.4399]
[1761066537880,2.47659833,4037.8,4036.6,0.4399]
[1761066538177,6.13866634,4037.7,4036.9,2.47713021]
[1761066538373,3.662,4037.7,4037.1,2.47697417]
[1761066538575,3.662,4037.7,4037.0,2.47708238]
[1761066538795,3.662,4037.7,4037.1,2.47702406]
[1761066539011,3.662,4037.7,4036.8,2.91709656]
[1761066539172,2.47676976,4037.6,4036.9,2.47713434]
[1761066539514,6.13866454,4037.7,4036.9,2.47713434]
[1761066539710,3.662,4037.7,4036.8,3.29212596]
[1761066540009,3.662,4037.7,4037.0,2.9169789]
[1761066540198,3.662,4037.7,4037.1,2.47702453]
[1761066540509,3.662,4037.7,4037.2,2.47694901]
[1761066540680,3.662,4037.7,4037.1,2.47700662]
[1761066540877,3.662,4037.7,4036.5,0.24227393]
[1761066540878,3.68792604,4037.6,4036.5,0.2175]
[1761066541079,3.68792604,4037.5,4036.5,2.69486674]
[1761066541409,2.47688746,4037.4,4036.6,2.47732148]
[1761066541610,0.02792604,4037.3,4036.6,2.47732148]
[1761066541813,0.02792604,4037.3,4036.5,0.2175]
[1761066542002,0.02792604,4037.3,4035.6,0.2144]
[1761066542176,0.02792604,4037.3,4035.7,2.91774723]
[1761066542376,0.02792604,4037.3,4035.7,3.23099624]
[1761066542377,2.47746103,4036.4,4035.7,3.23099624]
[1761066542577,0.02792604,4036.3,4035.0,0.4419]
[1761066542819,2.47769126,4036.1,4035.0,0.4419]
[1761066542979,3.66,4036.1,4035.1,0.4399]
[1761066543187,0.1882,4037.8,4035.8,22.65841345]
[1761066543188,3.659,4037.7,4035.8,22.65841345]
[1761066543451,3.659,4037.7,4035.9,2.26584135]
[1761066543743,3.659,4037.7,4035.9,2.70574135]
[1761066543944,3.659,4037.7,4036.0,0.4399]
[1761066544446,3.659,4037.7,4035.9,4.74359623]
[1761066544447,0.1232,4036.0,4035.6,2.47789339]
[1761066544621,0.1232,4036.0,4035.7,2.47783215]
[1761066544812,0.1232,4036.0,4035.6,2.91784138]
[1761066545008,0.1232,4036.0,4035.7,2.47788333]
[1761066545243,0.1232,4036.0,4035.7,0.4399]
[1761066545545,2.47619942,4038.5,4035.8,0.46467823]
[1761066545717,0.1232,4037.1,4036.4,0.1232]
[1761066545915,1.707,4038.8,4036.5,0.02477393]
[1761066546111,0.02792604,4038.7,4036.6,0.6574]
[1761066546311,0.099,4038.7,4036.7,0.45631271]
[1761066546519,0.099,4038.7,4037.5,2.47672284]
[1761066546824,22.65841345,4039.6,4036.7,0.87144]